[Event "GCT Superbet Blitz Poland 2025"]
[Site "Warsaw"]
[Date "2025.04.30"]
[Round "10"]
[White "Fedoseev, Vladimir"]
[Black "Vachier-Lagrave, Maxime"]
[Result "1-0"]
[ECO "D00"]
[WhiteElo "2739"]
[BlackElo "2722"]
[Annotator "ChessBase"]
[PlyCount "101"]
[EventDate "2025.??.??"]
[EventType "blitz"]
[TimeControl "300+2"]

1. d4 {[%emt 0:00:01]} Nf6 {[%emt 0:00:01]} 2. Bg5 {[%emt 0:00:01]} d5 {[%emt 0:00:04]} 3. Nd2 {[%emt 0:00:02]} c5 {[%emt 0:00:02]} 4. e3 {[%emt 0:00:01]} Qb6 {[%emt 0:00:06]} 5. Ngf3 {[%emt 0:00:02]} Nc6 {[%emt 0:00:15]} 6. dxc5 {[%emt 0:01:20]} Qxb2 {[%emt 0:00:02]} 7. Rb1 {[%emt 0:00:41]} Qc3 {[%emt 0:00:02]} 8. Bb5 {[%emt 0:00:01]} e6 {[%emt 0:00:44]} 9. O-O {[%emt 0:00:28]} Be7 $146 {[%emt 0:00:53]} ({RR} 9... Bxc5 10. Rb3 Qa5 11. Ne5 Qc7 12. Bf4 Bd6 13. Qa1 O-O 14. Bxc6 bxc6 15. c4 Nd7 16. Nd3 Ba6 17. Rc1 Bxf4 18. exf4 Rab8 19. Ra3 dxc4 20. Nxc4 Bb5 21. h4 Rfd8 22. Nce5 Nxe5 23. Nxe5 f6 24. Ng4 {Piorun,K (2611)-Alexakis,D (2486) Katowice POL 2022 1-0 (40)}) ({RR} 9... Bd7 10. Rb3 Qxc5 11. c4 Be7 12. cxd5 exd5 13. Qb1 O-O 14. Rc1 Qd6 15. Bf4 Qe6 16. Ng5 Qg4 17. Bd3 Na5 18. Bxh7+ Kh8 19. Ndf3 Nxb3 20. Ne5 Qh5 21. Nexf7+ Rxf7 22. Bg6 Qxg5 23. Bxg5 Nxc1 24. Bxf7 {Romanov,E (2619)-Morozevich,A (2683) Sochi 2016 0-1}) ({RR} 9... Qxc5 10. Bxf6 gxf6 11. c4 Bg7 12. Nb3 Qd6 13. cxd5 exd5 14. Nbd4 O-O 15. Bxc6 bxc6 16. Nh4 f5 17. Nhxf5 Bxf5 18. Nxf5 Qf6 19. Qg4 Rab8 20. g3 Kh8 21. Rfc1 Rxb1 22. Rxb1 Qg6 23. Qf4 Qe6 24. Rb8 {Artemiev,V (2709)-Gelfand,B (2673) St Petersburg 2018 1-0 (32)}) 10. e4 {[%emt 0:00:19]} Qxc5 {[%emt 0:00:43]} 11. Be3 {[%emt 0:00:46]} Qa3 {[%emt 0:00:01]} 12. Rb3 {[%emt 0:00:03]} Qa5 {[%emt 0:00:05]} 13. Ne5 {[%emt 0:00:27]} O-O {[%emt 0:00:17]} 14. Bxc6 {[%emt 0:00:02]} Qc7 {[%emt 0:00:11]} 15. exd5 {[%emt 0:00:02]} bxc6 {[%emt 0:00:26]} 16. Nxc6 {[%emt 0:00:17]} Bd6 {[%emt 0:00:01]} 17. Nd4 {[%emt 0:00:33]} Ba6 {[%emt 0:00:08]} 18. dxe6 {[%emt 0:00:04]} Bxh2+ {[%emt 0:00:09]} 19. Kh1 {[%emt 0:00:01]} Bxf1 {[%emt 0:00:01]} 20. Nxf1 {[%emt 0:00:04]} Be5 {[%emt 0:00:01]} 21. Qf3 {[%emt 0:00:12]} Bxd4 {[%emt 0:00:59]} 22. exf7+ {[%emt 0:00:01]} Qxf7 {[%emt 0:00:01]} 23. Bxd4 {[%emt 0:00:01]} Rad8 {[%emt 0:00:04]} 24. c3 {[%emt 0:00:06]} Nd5 {[%emt 0:00:06]} 25. Qxf7+ {[%emt 0:00:04]} Rxf7 {[%emt 0:00:01]} 26. Ng3 {[%emt 0:00:03]} h6 {[%emt 0:00:08]} 27. f3 {[%emt 0:00:01]} Kh7 {[%emt 0:00:03]} 28. Ne4 {[%emt 0:00:00]} Nf4 {[%emt 0:00:01]} 29. Ra3 {[%emt 0:00:03]} Ne2 {[%emt 0:00:05]} 30. Bf2 {[%emt 0:00:02]} Rd5 {[%emt 0:00:03]} 31. Ng3 {[%emt 0:00:08]} Nf4 {[%emt 0:00:02]} 32. c4 {[%emt 0:00:03]} Rd1+ {[%emt 0:00:02]} 33. Kh2 {[%emt 0:00:02]} Rd2 {[%emt 0:00:00]} 34. Ne4 {[%emt 0:00:00]} Rc2 {[%emt 0:00:02]} 35. c5 {[%emt 0:00:01]} Rb7 {[%emt 0:00:05]} 36. Kg3 {[%emt 0:00:03]} Nh5+ {[%emt 0:00:04]} 37. Kg4 {[%emt 0:00:03]} Kg6 {[%emt 0:00:01]} 38. Ra6+ {[%emt 0:00:01]} Nf6+ {[%emt 0:00:01]} 39. Nxf6 {[%emt 0:00:01]} gxf6 {[%emt 0:00:01]} 40. Kg3 {[%emt 0:00:03]} Rbb2 {[%emt 0:00:02]} 41. Bd4 {[%emt 0:00:00]} Rxg2+ {[%emt 0:00:01]} 42. Kf4 {[%emt 0:00:01]} Rxa2 {[%emt 0:00:04]} 43. Rxf6+ {[%emt 0:00:01]} Kh7 {[%emt 0:00:00]} 44. Rf7+ {[%emt 0:00:01]} Kg8 {[%emt 0:00:01]} 45. Rd7 {[%emt 0:00:01]} Rg6 {[%emt 0:00:07]} 46. Kf5 {[%emt 0:00:03]} Rg5+ {[%emt 0:00:01]} 47. Ke6 {[%emt 0:00:05]} Ra6+ {[%emt 0:00:04]} 48. Rd6 {[%emt 0:00:04]} Ra4 {[%emt 0:00:08]} 49. c6 {[%emt 0:00:04]} Rg6+ {[%emt 0:00:02]} 50. Bf6 {[%emt 0:00:01]} Kh7 {[%emt 0:00:04]} 51. Rd7+ {[%emt 0:00:00]} 1-0

[Event "GCT Superbet Blitz Poland 2025"]
[Site "Warsaw"]
[Date "2025.04.30"]
[Round "10"]
[White "Topalov, Veselin"]
[Black "Aronian, Levon"]
[Result "0-1"]
[ECO "A13"]
[WhiteElo "2717"]
[BlackElo "2747"]
[Annotator "ChessBase"]
[PlyCount "104"]
[EventDate "2025.??.??"]
[EventType "blitz"]
[TimeControl "300+2"]

1. c4 {[%emt 0:00:02]} e6 {[%emt 0:00:02]} 2. Nf3 {[%emt 0:00:02]} d5 {[%emt 0:00:02]} 3. e3 {[%emt 0:00:02]} Nf6 {[%emt 0:00:03]} 4. b3 {[%emt 0:00:02]} Bd6 {[%emt 0:00:05]} 5. Be2 {[%emt 0:00:06]} b6 {[%emt 0:00:10]} 6. O-O {[%emt 0:00:04]} Bb7 {[%emt 0:00:01]} 7. cxd5 {[%emt 0:00:01]} exd5 {[%emt 0:00:02]} 8. Ba3 {[%emt 0:00:11]} O-O {[%emt 0:00:09]} 9. Bxd6 {[%emt 0:00:02]} Qxd6 {[%emt 0:00:01]} 10. Nc3 {[%emt 0:00:01]} a6 {[%emt 0:00:01]} 11. d4 {[%emt 0:00:01]} Nbd7 {[%emt 0:00:01]} 12. Rc1 {[%emt 0:00:01]} Rfe8 {[%emt 0:00:08]} 13. Rc2 $146 {[%emt 0:00:01]} ({RR} 13. Qc2 Rac8 14. Rfd1 Nf8 15. Qb2 c5 16. Qa3 Ne6 17. Bd3 Red8 18. Bf5 g6 19. Bxe6 fxe6 20. Na4 cxd4 21. Qxd6 Rxd6 22. exd4 Nd7 23. Rxc8+ Bxc8 24. Rc1 Bb7 25. Ne5 Nxe5 26. dxe5 Rc6 27. Rxc6 Bxc6 {Andreikin,D (2725)-Sargsyan,S (2486) Chess.com INT 2019 1-0 (39)}) 13... Nf8 {[%emt 0:00:05]} 14. Qc1 {[%emt 0:00:02]} Ne6 {[%emt 0:00:03]} 15. Rd1 {[%emt 0:00:01]} Re7 {[%emt 0:00:31]} 16. Bf1 {[%emt 0:00:02]} g6 {[%emt 0:00:05]} 17. g3 {[%emt 0:00:04]} Kg7 {[%emt 0:00:16]} 18. Bg2 {[%emt 0:00:01]} h6 {[%emt 0:00:01]} 19. Qb2 {[%emt 0:00:01]} Rae8 {[%emt 0:00:19]} 20. b4 {[%emt 0:00:05]} Bc8 {[%emt 0:00:45]} 21. b5 {[%emt 0:00:11]} Ng5 {[%emt 0:00:29]} 22. Ne5 {[%emt 0:00:17]} Bf5 {[%emt 0:00:04]} 23. Rcc1 {[%emt 0:00:20]} a5 {[%emt 0:00:14]} 24. a3 {[%emt 0:00:11]} Nh3+ {[%emt 0:00:17]} 25. Kh1 {[%emt 0:00:04]} h5 {[%emt 0:00:03]} 26. f3 {[%emt 0:00:23]} Ng5 {[%emt 0:00:05]} 27. Ne2 {[%emt 0:00:16]} Nd7 {[%emt 0:00:27]} 28. h4 {[%emt 0:01:08]} Nh7 {[%emt 0:00:17]} 29. f4 {[%emt 0:00:17]} Ndf6 {[%emt 0:00:01]} 30. Rc6 {[%emt 0:00:10]} Qd8 {[%emt 0:00:00]} 31. Rcc1 {[%emt 0:00:02]} Ne4 {[%emt 0:00:08]} 32. Kg1 {[%emt 0:00:07]} Re6 {[%emt 0:00:04]} 33. Qa2 {[%emt 0:00:40]} Nhf6 {[%emt 0:00:03]} 34. a4 {[%emt 0:00:15]} Ng4 {[%emt 0:00:03]} 35. Qb3 {[%emt 0:00:26]} f6 {[%emt 0:00:04]} 36. Bxe4 {[%emt 0:00:13]} Bxe4 {[%emt 0:00:02]} 37. Nxg4 {[%emt 0:00:02]} hxg4 {[%emt 0:00:04]} 38. Rc3 {[%emt 0:00:03]} g5 {[%emt 0:00:16]} 39. fxg5 {[%emt 0:00:02]} fxg5 {[%emt 0:00:00]} 40. hxg5 {[%emt 0:00:01]} Qxg5 {[%emt 0:00:11]} 41. Rxc7+ {[%emt 0:00:03]} R8e7 {[%emt 0:00:02]} 42. Rxe7+ {[%emt 0:00:03]} Rxe7 {[%emt 0:00:07]} 43. Qa3 {[%emt 0:00:01]} Rf7 {[%emt 0:00:14]} 44. Rf1 {[%emt 0:00:02]} Rf3 {[%emt 0:00:01]} 45. Rf2 {[%emt 0:00:04]} Kf7 {[%emt 0:00:09]} 46. Nf4 {[%emt 0:00:02]} Qh6 {[%emt 0:00:07]} 47. Rg2 {[%emt 0:00:03]} Qf8 {[%emt 0:00:07]} 48. Qxf8+ {[%emt 0:00:02]} Kxf8 {[%emt 0:00:01]} 49. Ng6+ {[%emt 0:00:02]} Kg7 {[%emt 0:00:03]} 50. Ne5 {[%emt 0:00:02]} Rxe3 {[%emt 0:00:00]} 51. Ra2 {[%emt 0:00:01]} Rxg3+ {[%emt 0:00:03]} 52. Kh2 {[%emt 0:00:01]} Rh3+ {[%emt 0:00:00]} 0-1

[Event "GCT Superbet Blitz Poland 2025"]
[Site "Warsaw"]
[Date "2025.04.30"]
[Round "11"]
[White "Firouzja, Alireza"]
[Black "Topalov, Veselin"]
[Result "1-0"]
[ECO "B30"]
[WhiteElo "2757"]
[BlackElo "2717"]
[Annotator "ChessBase"]
[PlyCount "103"]
[EventDate "2025.??.??"]
[EventType "blitz"]
[TimeControl "300+2"]

1. e4 {[%emt 0:00:01] Nielsen,Peter Heine} c5 {[%emt 0:00:01]} 2. Nf3 {[%emt 0:00:01]} Nc6 {[%emt 0:00:01]} 3. Bb5 {[%emt 0:00:02]} e6 {[%emt 0:00:05]} 4. O-O {[%emt 0:00:06]} ({RR} 4. Bxc6 bxc6 5. b3 d6 6. O-O Ne7) 4... Nge7 {[%emt 0:00:02]} 5. Re1 {[%emt 0:00:02]} a6 {[%emt 0:00:03]} 6. Bf1 {[%emt 0:00:02]} d5 {[%emt 0:00:09]} 7. exd5 {[%emt 0:00:04]} ({RR} 7. d3 d4 8. e5 Nd5 9. c4 dxc3 10. bxc3 Rb8 11. Bb2 b5) 7... Nxd5 {[%emt 0:00:06]} 8. d4 {[%emt 0:00:02]} Nf6 {[%emt 0:00:07]} 9. Be3 {[%emt 0:00:04]} cxd4 {[%emt 0:00:04]} ({RR} 9... Be7 10. c4 O-O 11. Nc3 cxd4 12. Nxd4) 10. Nxd4 {[%emt 0:00:02]} Bd7 {[%emt 0:00:04]} 11. c4 {[%emt 0:00:29]} Qb8 $146 {[%emt 0:00:37]} ({RR} 11... Be7 12. Nc3 O-O 13. Qb3 Nxd4 14. Bxd4 Bc6 15. Rad1 Qa5 16. Bb6 Qb4 17. g3 Qxb3 18. axb3 Bd8 19. Bc5 Re8 20. Bg2 Bxg2 21. Kxg2 Bc7 22. b4 Rad8 23. b5 Ba5 24. b4 Bc7 25. bxa6 bxa6 26. f4 {Kovalev,V (2579)-Toncheva,N (2257) chess.com INT 2024 0-1 (46)}) ({RR} 11... Nxd4 12. Bxd4 Bc6 13. Nc3 Be7 14. a3 ({RR} 14. Qd3 O-O 15. Rad1) 14... a5 ({RR} 14... O-O 15. b4) 15. Qd3 O-O ({RR} 15... a4 16. Rad1 O-O 17. Qg3) 16. Rad1 Qc7 17. Be5 Qb6 18. Qg3 Rfd8 ({RR} 18... Nh5 19. Qh3 Nf6 20. Bd3 h6 21. Bd4 Qc7 22. b4) 19. Rxd8+ ({RR} 19. Nd5 exd5 20. Bd4 Bc5 21. Bxf6 Bxf2+) 19... Qxd8 20. Rd1 Qb6 ({RR} 20... Qf8 21. b4 axb4 22. axb4 Nh5 23. Qg4 Bxb4 24. Qxh5 f6 25. Bd3 g6 26. Bxg6 ({RR} 26. Qg4 fxe5 27. Qxe6+ Qf7 28. Qxe5 Ra5) 26... hxg6 27. Qxg6+ Qg7) 21. Bd4 Qb3 22. Rd3 ({RR} 22. Rd2 a4 23. Qc7 Nd7 24. Be3 Bd8 25. Qg3) 22... Qc2 23. b4 axb4 24. axb4 Nh5 25. Qe5 ({RR} 25. Qe3 Bxb4 26. Qg5 g6 ({RR} 26... f6 27. Qxh5 e5 28. Qf5 Rf8) 27. Ne4 Bxe4 28. Qe5) 25... Bf6 ({RR} 25... Ra1 26. Nd1 Rxd1 27. Rxd1 Qxd1 28. Qb8+ Bf8 29. Bc5 h6 30. Qxf8+ Kh7 31. Qd6 ({RR} 31. Qxf7 Be4)) 26. Qxh5 {Carlsen,M (2872)-Gelfand,B (2740) London 2013 CBM 154 [Nielsen,Peter Heine] 1-0 (48)}) ({RR} 11... Be7 12. Nc3 O-O 13. Nf3) ({RR} 11... Bb4 12. Nc3 Bxc3 13. bxc3 O-O 14. Bf4 Nxd4 15. cxd4 Bc6) ({RR} 11... Qc7 12. Nc3 Be7 13. a3 O-O 14. b4 Rfd8 15. Qe2 Bd6 16. h3 Bh2+ 17. Kh1 Be5 18. Rad1 Be8 19. Nxc6 Qxc6 20. Rxd8 Rxd8 21. Bb6 Qxb6 22. c5 Qc7 23. Qxe5 Qxe5 24. Rxe5 Rd4 25. Kg1 Kf8 26. f3 {Alexakis,D (2507)-Giannopoulos,I (1971) Thessaloniki GRE 2025 1-0 (40)}) ({RR} 11... h5 12. h3 Nxd4 13. Bxd4 Bc6 14. Nc3 Qd6 15. c5 Qd7 16. Qd3 Be7 17. Rad1 Rd8 18. Qg3 Qxd4 19. Rxd4 Rxd4 20. Rd1 Rxd1 21. Nxd1 O-O 22. b4 Rd8 23. Nc3 Nd5 24. Nxd5 Rxd5 25. a4 Rd1 26. Qb3 {Firouzja,A (2763)-Dardha,D (2645) chess.com INT 2025 1-0 (44)}) ({RR} 11... Rc8 12. Nc3 Ne5 13. Bg5 h6 14. Bh4 g5 15. Bg3 Nxc4 16. Bxc4 Rxc4 17. Be5 Rc5 18. Bxf6 Qxf6 19. Ne4 Qf4 20. g3 Qc7 21. Nxc5 Bxc5 22. Nb3 Ba7 23. Rc1 Bc6 24. Nd4 Qb6 25. Nxc6 Qxf2+ 26. Kh1 {De Silva,L (2398)-Md Imran (2222) Bangalore IND 2024 1-0}) ({RR} 11... Nxd4 12. Bxd4 Bc6 13. Nc3 Bd6 14. g3 h5 15. Bg2 Bxg2 16. Kxg2 h4 17. Qf3 Qe7 18. Rad1 Rc8 19. Bxf6 gxf6 20. Nd5 exd5 21. Qxf6 O-O {1-0 (21) Pichot,A (2638)-Melikyan,G (2238) chess.com INT 2023}) 12. Nc3 {[%emt 0:00:24]} Bd6 {[%emt 0:00:01]} 13. h3 {[%emt 0:00:16]} O-O {[%emt 0:00:03]} 14. Nf3 {[%emt 0:00:43]} Rd8 {[%emt 0:00:17]} 15. c5 {[%emt 0:00:18]} Bf4 {[%emt 0:00:12]} 16. Qc1 {[%emt 0:00:02]} Bxe3 {[%emt 0:00:01]} 17. Qxe3 {[%emt 0:00:01]} Nb4 {[%emt 0:00:38]} 18. Rac1 {[%emt 0:00:15]} b6 {[%emt 0:00:24]} 19. Ne5 {[%emt 0:00:17]} Be8 {[%emt 0:00:08]} 20. cxb6 {[%emt 0:00:51]} Nbd5 {[%emt 0:00:01]} 21. Nxd5 {[%emt 0:00:07]} Nxd5 {[%emt 0:00:01]} 22. Qg3 {[%emt 0:00:16]} Qxb6 {[%emt 0:00:04]} 23. b3 {[%emt 0:00:03]} Rac8 {[%emt 0:00:05]} 24. Nc4 {[%emt 0:00:06]} Qb8 {[%emt 0:00:18]} 25. Qxb8 {[%emt 0:00:32]} Rxb8 {[%emt 0:00:01]} 26. Na5 {[%emt 0:00:01]} Nb4 {[%emt 0:00:08]} 27. a3 {[%emt 0:00:13]} Nd3 {[%emt 0:00:02]} 28. Bxd3 {[%emt 0:00:01]} Rxd3 {[%emt 0:00:01]} 29. Red1 {[%emt 0:00:18]} Rxd1+ {[%emt 0:01:03]} 30. Rxd1 {[%emt 0:00:01]} Rb5 {[%emt 0:00:21]} 31. Rd8 {[%emt 0:00:04]} Kf8 {[%emt 0:00:01]} 32. b4 {[%emt 0:00:01]} Ke7 {[%emt 0:00:07]} 33. Ra8 {[%emt 0:00:01]} Rb6 {[%emt 0:00:01]} 34. Ra7+ {[%emt 0:00:02]} Kf6 {[%emt 0:00:07]} 35. Nb3 {[%emt 0:00:01]} Rd6 {[%emt 0:00:08]} 36. Nc5 {[%emt 0:00:01]} Rd1+ {[%emt 0:00:03]} 37. Kh2 {[%emt 0:00:01]} Bc6 {[%emt 0:00:06]} 38. Rxa6 {[%emt 0:00:02]} Bd5 {[%emt 0:00:01]} 39. b5 {[%emt 0:00:14]} Rd2 {[%emt 0:00:01]} 40. Kg3 {[%emt 0:00:02]} g5 {[%emt 0:00:01]} 41. Nd7+ {[%emt 0:00:06]} Kf5 {[%emt 0:00:02]} 42. Nb6 {[%emt 0:00:01]} Bb3 {[%emt 0:00:14]} 43. Ra7 {[%emt 0:00:04]} e5 {[%emt 0:00:01]} 44. Rc7 {[%emt 0:00:04]} h5 {[%emt 0:00:03]} 45. Rc3 {[%emt 0:00:03]} h4+ {[%emt 0:00:02]} 46. Kh2 {[%emt 0:00:00]} Be6 {[%emt 0:00:01]} 47. f3 {[%emt 0:00:02]} e4 {[%emt 0:00:04]} 48. Nc4 {[%emt 0:00:03]} Bxc4 {[%emt 0:00:02]} 49. fxe4+ {[%emt 0:00:01]} Kxe4 {[%emt 0:00:04]} 50. Rxc4+ {[%emt 0:00:00]} Ke5 {[%emt 0:00:17]} 51. Rb4 {[%emt 0:00:05]} Kd6 {[%emt 0:00:01]} 52. b6 {[%emt 0:00:02]} 1-0

[Event "GCT Superbet Blitz Poland 2025"]
[Site "Warsaw"]
[Date "2025.04.30"]
[Round "11"]
[White "Aronian, Levon"]
[Black "Praggnanandhaa R"]
[Result "1-0"]
[ECO "A30"]
[WhiteElo "2747"]
[BlackElo "2758"]
[Annotator "ChessBase"]
[PlyCount "97"]
[EventDate "2025.??.??"]
[EventType "blitz"]
[TimeControl "300+2"]

1. c4 {[%emt 0:00:01]} Nf6 {[%emt 0:00:02]} 2. Nf3 {[%emt 0:00:04]} e6 {[%emt 0:00:12]} 3. b3 {[%emt 0:00:04]} b6 {[%emt 0:00:07]} 4. e3 {[%emt 0:00:05]} Bb7 {[%emt 0:00:02]} 5. Be2 {[%emt 0:00:01]} Be7 {[%emt 0:00:04]} 6. O-O {[%emt 0:00:03]} O-O {[%emt 0:00:02]} 7. d4 {[%emt 0:00:03]} c5 {[%emt 0:00:04]} 8. Bb2 {[%emt 0:00:11]} cxd4 {[%emt 0:00:04]} 9. Nxd4 {[%emt 0:00:02]} Nc6 {[%emt 0:00:01]} 10. Nd2 {[%emt 0:00:17]} Rc8 {[%emt 0:00:18]} 11. Rc1 {[%emt 0:00:01]} Nxd4 {[%emt 0:00:09]} 12. Bxd4 {[%emt 0:00:02]} Ba3 {[%emt 0:00:01]} 13. Rc2 {[%emt 0:00:05]} Qe7 {[%emt 0:00:01]} 14. Bf3 {[%emt 0:00:21]} Bxf3 $146 {[%emt 0:00:55]} ({RR} 14... d5 15. Qa1 Rfd8 16. Bb2 Bxb2 17. Qxb2 dxc4 18. Bxb7 Qxb7 19. Nxc4 b5 20. Na5 Qd7 21. Rxc8 Rxc8 22. h3 Qc7 23. b4 Nd5 24. a3 Qc3 25. Qa2 Qd3 26. Qa1 Rc3 27. Rc1 Rxc1+ 28. Qxc1 h6 29. Nc6 {Sharan,R (2433)-Bhillva Nilaya K E K (1843) chess.com INT 2023 1-0 (34)}) ({RR} 14... d5 15. Qa1 Rfd8 16. Bb2 Bxb2 17. Qxb2 dxc4 18. Bxb7 Qxb7 19. Nxc4 b5 20. Na5 Qd7 21. Rxc8 Rxc8 22. h3 Qc7 23. b4 Nd5 24. a3 Qc3 25. Qa2 Qd3 26. Qa1 Rc3 27. Rc1 Rxc1+ 28. Qxc1 h6 29. Nc6 {Sharan,R (2433)-Bhillva Nilaya K E K (1843) chess.com INT 2023 1-0 (34)}) 15. Nxf3 {[%emt 0:00:16]} Rfd8 {[%emt 0:00:17]} 16. h3 {[%emt 0:00:25]} h6 {[%emt 0:00:12]} 17. Qe2 {[%emt 0:00:00]} d5 {[%emt 0:00:27]} 18. Rd1 {[%emt 0:00:11]} dxc4 {[%emt 0:00:09]} 19. Rxc4 {[%emt 0:00:03]} Rxc4 {[%emt 0:00:13]} 20. Qxc4 {[%emt 0:00:01]} Qb7 {[%emt 0:00:18]} 21. b4 {[%emt 0:00:38]} a5 {[%emt 0:00:18]} 22. bxa5 {[%emt 0:00:25]} bxa5 {[%emt 0:00:00]} 23. Qa4 {[%emt 0:00:08]} Qb4 {[%emt 0:00:36]} 24. Qc2 {[%emt 0:00:02]} Qb5 {[%emt 0:00:53]} 25. Rb1 {[%emt 0:00:18]} Qd5 {[%emt 0:00:01]} 26. Ne5 {[%emt 0:00:27]} Qe4 {[%emt 0:00:21]} 27. Qxe4 {[%emt 0:00:43]} Nxe4 {[%emt 0:00:01]} 28. Rb7 {[%emt 0:00:04]} Bc5 {[%emt 0:00:06]} 29. Nxf7 {[%emt 0:00:40]} Rd5 30. Bxc5 {[%emt 0:00:09]} Nxc5 {[%emt 0:00:02]} 31. Ra7 {[%emt 0:00:01]} Ne4 {[%emt 0:00:05]} 32. f3 {[%emt 0:00:03]} Nc3 {[%emt 0:00:00]} 33. e4 {[%emt 0:00:01]} Rc5 {[%emt 0:00:01]} 34. Nd8 {[%emt 0:00:04]} Re5 {[%emt 0:00:04]} 35. Nc6 {[%emt 0:00:03]} Rc5 {[%emt 0:00:00]} 36. Nxa5 {[%emt 0:00:02]} Nxa2 {[%emt 0:00:02]} 37. Nb3 {[%emt 0:00:01]} Rc3 {[%emt 0:00:05]} 38. Nd4 {[%emt 0:00:02]} Nc1 {[%emt 0:00:01]} 39. Nxe6 {[%emt 0:00:01]} g5 {[%emt 0:00:01]} 40. Nd4 {[%emt 0:00:06]} Nd3 {[%emt 0:00:03]} 41. Nf5 {[%emt 0:00:01]} Nf4 {[%emt 0:00:02]} 42. Nxh6+ {[%emt 0:00:02]} Kf8 {[%emt 0:00:00]} 43. Ra2 {[%emt 0:00:02]} Kg7 {[%emt 0:00:03]} 44. Ng4 {[%emt 0:00:01]} Rc6 {[%emt 0:00:04]} 45. Ra7+ {[%emt 0:00:02]} Kf8 {[%emt 0:00:00]} 46. Ra2 {[%emt 0:00:00]} Rb6 {[%emt 0:00:03]} 47. Kh2 {[%emt 0:00:01]} Kg7 {[%emt 0:00:00]} 48. Ne3 {[%emt 0:00:02]} Kg6 {[%emt 0:00:01]} 49. Nd5 {[%emt 0:00:00]} 1-0

[Event "GCT Superbet Blitz Poland 2025"]
[Site "Warsaw"]
[Date "2025.04.30"]
[Round "11"]
[White "Fedoseev, Vladimir"]
[Black "Aravindh, Chithambaram VR."]
[Result "1-0"]
[ECO "D00"]
[WhiteElo "2739"]
[BlackElo "2749"]
[Annotator "ChessBase"]
[PlyCount "74"]
[EventDate "2025.??.??"]
[EventType "blitz"]
[TimeControl "300+2"]

1. d4 {[%emt 0:00:01]} Nf6 {[%emt 0:00:02]} 2. Bg5 {[%emt 0:00:01]} d5 {[%emt 0:00:11]} 3. e3 {[%emt 0:00:01]} e6 {[%emt 0:00:05]} 4. Nd2 {[%emt 0:00:14]} b6 {[%emt 0:00:08]} ({RR} 4... h6 5. Bh4 c5 6. c3 Be7 7. Bd3 Qb6 8. Rb1 Bd7 9. a4 Bc6 10. dxc5 Qxc5 11. b4 Qxc3 12. Rb3 Qe5 13. b5 Bd7 14. Bg3 Qh5 15. Ngf3 O-O 16. h3 Be8 17. Bh4 d4 18. exd4 Nbd7 19. Be4 {Andreikin,D (2702)-Wang,Y (2690) China 2018 1-0}) 5. Ngf3 $146 {[%emt 0:00:03]} ({RR} 5. Bd3 Ba6 6. Qe2 Bxd3 7. Qxd3 Be7 8. f4 Nbd7 9. Ngf3 c5 10. c3 Qc7 11. O-O h6 12. Bh4 O-O 13. Ne5 Rfe8 14. Rf3 Nh5 15. Bxe7 Rxe7 16. g4 Nhf6 17. Rg3 Nf8 18. Rf1 N6d7 19. Ndf3 f6 {Bach,M (1963)-Rajnys,V (2091) Karlovy Vary 2009 ½-½}) ({RR} 5. Bd3 Bb7 6. Ngf3 Bd6 7. Ne5 Nbd7 8. f4 h6 9. Bh4 Be7 10. O-O O-O 11. Qf3 Ne8 12. Bxe7 Qxe7 13. c3 Nxe5 14. fxe5 f5 15. g4 g6 16. gxf5 exf5 17. Rf2 Ng7 18. Rg2 Qf7 19. Kh1 Ne6 {Schulz,M (2175)-Breuil,T (2268) chess.com INT 2024 0-1 (32)}) ({RR} 5. c3 Bb7 6. Ngf3 Be7 7. Ne5 Nfd7 8. Bxe7 Qxe7 9. Ndf3 O-O 10. b4 Nxe5 11. Nxe5 f6 12. Nf3 c5 13. bxc5 bxc5 14. Rb1 Bc6 15. Bb5 c4 16. Bxc6 Nxc6 17. Qa4 Rab8 18. O-O Qc7 19. Nd2 Rfc8 {Brautsch,S-Rendboe,J Aarhus 1988 1-0 (45)}) ({RR} 5. Bd3 Bb7 6. Bxf6 Qxf6 7. f4 g5 8. g3 gxf4 9. gxf4 Qh4+ 10. Kf1 c5 11. c3 Nc6 12. Ndf3 Qh6 13. Qa4 a6 14. Ne5 b5 15. Bxb5 axb5 16. Qxb5 Ba6 {0-1 (16) Tymrakiewicz,R (2139)-Liyanage,R (2358) chess.com INT 2023}) 5... Bb7 {[%emt 0:00:02]} 6. Bb5+ {[%emt 0:00:08]} c6 {[%emt 0:00:15]} 7. Bd3 {[%emt 0:00:02]} Be7 {[%emt 0:00:05]} 8. c4 {[%emt 0:00:16]} Nbd7 {[%emt 0:00:02]} 9. O-O {[%emt 0:00:04]} c5 {[%emt 0:00:04]} 10. cxd5 {[%emt 0:00:05]} exd5 {[%emt 0:00:17]} 11. dxc5 {[%emt 0:00:29]} bxc5 {[%emt 0:00:02]} 12. Qc2 {[%emt 0:00:23]} O-O {[%emt 0:00:09]} 13. Rad1 {[%emt 0:00:03]} g6 {[%emt 0:00:19]} 14. Bb5 {[%emt 0:00:28]} Rc8 {[%emt 0:00:27]} 15. Qa4 {[%emt 0:00:22]} Nb6 {[%emt 0:00:13]} 16. Qxa7 {[%emt 0:00:09]} Ra8 {[%emt 0:01:12]} 17. Qxb7 {[%emt 0:00:02]} Rb8 {[%emt 0:00:01]} 18. Qc6 {[%emt 0:00:17]} Rc8 {[%emt 0:00:01]} 19. Ne5 {[%emt 0:00:18]} Rxc6 {[%emt 0:00:02]} 20. Nxc6 {[%emt 0:00:01]} Qc7 {[%emt 0:00:02]} 21. e4 {[%emt 0:00:31]} Kg7 {[%emt 0:00:48]} 22. Rfe1 {[%emt 0:00:33]} Ng4 {[%emt 0:00:18]} 23. Bxe7 {[%emt 0:00:10]} Qxh2+ {[%emt 0:00:01]} 24. Kf1 {[%emt 0:00:01]} Re8 {[%emt 0:00:07]} 25. Bxc5 {[%emt 0:00:05]} Nc4 {[%emt 0:00:39]} 26. Bd4+ {[%emt 0:00:25]} f6 {[%emt 0:00:10]} 27. Nxc4 {[%emt 0:00:11]} dxc4 {[%emt 0:00:05]} 28. f3 {[%emt 0:00:00]} Nh6 {[%emt 0:00:08]} 29. Bg1 {[%emt 0:00:08]} Qf4 {[%emt 0:00:02]} 30. Nd4 {[%emt 0:00:02]} Re5 {[%emt 0:00:01]} 31. Bxc4 {[%emt 0:00:03]} Qh4 {[%emt 0:00:03]} 32. Ne6+ {[%emt 0:00:03]} Rxe6 {[%emt 0:00:01]} 33. Bxe6 {[%emt 0:00:01]} g5 {[%emt 0:00:02]} 34. Rd7+ {[%emt 0:00:03]} Kg6 {[%emt 0:00:01]} 35. g4 {[%emt 0:00:09]} Qh3+ {[%emt 0:00:03]} 36. Ke2 {[%emt 0:00:01]} Qg2+ {[%emt 0:00:04]} 37. Bf2 Qh2 {[%emt 0:00:02]} 1-0